[Event "Early Titled Tuesday Blitz | February 8 2022"]
[White "Janaszak, Dawid"]
[Black "Redzisz, Michal"]
[WhiteFideId "1119206"]
[BlackFideId "21816107"]
[WhiteElo "2199"]
[BlackElo "1961"]
[Result "0-1"]
[Round "04"]
[TimeControl "180+1"]
[Date "2022.02.08"]
[WhiteClock "0:00:23"]
[BlackClock "0:01:06"]

1. e4 {[%clk 0:03:00]}  c5 {[%clk 0:02:54]} 2. Nc3 {[%clk 0:03:00]}  Nc6 {[%clk 0:02:50]} 3. Bb5 {[%clk 0:03:00]}  g6 {[%clk 0:02:49]} 4. Bxc6 {[%clk 0:02:59]}  dxc6 {[%clk 0:02:50]} 5. d3 {[%clk 0:02:59]}  Bg7 {[%clk 0:02:51]} 6. Be3 {[%clk 0:02:56]}  b6 {[%clk 0:02:50]} 7. Qd2 {[%clk 0:02:53]}  h5 {[%clk 0:02:49]} 8. f4 {[%clk 0:02:45]}  h4 {[%clk 0:02:45]} 9. O-O-O {[%clk 0:02:42]}  h3 {[%clk 0:02:45]} 10. Nxh3 {[%clk 0:02:32]}  Bxh3 {[%clk 0:02:45]} 11. gxh3 {[%clk 0:02:33]}  Rxh3 {[%clk 0:02:44]} 12. Kb1 {[%clk 0:02:25]}  Bxc3 {[%clk 0:02:38]} 13. bxc3 {[%clk 0:02:19]}  Qd7 {[%clk 0:02:37]} 14. f5 {[%clk 0:02:15]}  O-O-O {[%clk 0:02:30]} 15. fxg6 {[%clk 0:02:11]}  fxg6 {[%clk 0:02:31]} 16. Bf4 {[%clk 0:02:10]}  Nf6 {[%clk 0:02:28]} 17. Rhg1 {[%clk 0:02:07]}  c4 {[%clk 0:02:23]} 18. dxc4 {[%clk 0:01:26]}  Qxd2 {[%clk 0:02:18]} 19. Rxd2 {[%clk 0:01:26]}  Rxd2 {[%clk 0:02:13]} 20. Bxd2 {[%clk 0:01:27]}  Nxe4 {[%clk 0:02:14]} 21. Be1 {[%clk 0:01:12]}  Rxh2 {[%clk 0:02:07]} 22. Kb2 {[%clk 0:00:59]}  g5 {[%clk 0:01:58]} 23. Rg4 {[%clk 0:00:58]}  Re2 {[%clk 0:01:58]} 24. Bg3 {[%clk 0:00:57]}  Nxg3 {[%clk 0:01:45]} 25. Rxg3 {[%clk 0:00:56]}  Re5 {[%clk 0:01:45]} 26. Kc1 {[%clk 0:00:54]}  Kd7 {[%clk 0:01:43]} 27. Kd2 {[%clk 0:00:55]}  Ke6 {[%clk 0:01:35]} 28. Rf3 {[%clk 0:00:47]}  Rf5 {[%clk 0:01:32]} 29. Re3+ {[%clk 0:00:47]}  Kd6 {[%clk 0:01:32]} 30. Rd3+ {[%clk 0:00:46]}  Kc5 {[%clk 0:01:20]} 31. Rd7 {[%clk 0:00:45]}  Rf7 {[%clk 0:01:19]} 32. Rxa7 {[%clk 0:00:38]}  g4 {[%clk 0:01:19]} 33. Ra8 {[%clk 0:00:38]}  Rg7 {[%clk 0:01:19]} 34. Rh8 {[%clk 0:00:29]}  g3 {[%clk 0:01:11]} 35. Rh1 {[%clk 0:00:25]}  g2 {[%clk 0:01:11]} 36. Rg1 {[%clk 0:00:25]}  Kxc4 {[%clk 0:01:11]} 37. a4 {[%clk 0:00:24]}  e6 {[%clk 0:01:07]} 38. Ke3 {[%clk 0:00:23]}  Kxc3 {[%clk 0:01:07]} 39. Kf2 {[%clk 0:00:23]}  Kxc2 {[%clk 0:01:07]} 40. a5 {[%clk 0:00:24]}  bxa5 {[%clk 0:01:07]} 41. Ra1 {[%clk 0:00:23]}  g1=Q+ {[%clk 0:01:06]} 0-1


[Site "https://www.chess.com"]

[Event "Early Titled Tuesday Blitz | February 8 2022"]
[White "Jones, Gawain C B"]
[Black "Nepomniachtchi, Ian"]
[WhiteFideId "409561"]
[BlackFideId "4168119"]
[WhiteElo "2657"]
[BlackElo "2740"]
[Result "1-0"]
[Round "04"]
[TimeControl "180+1"]
[Date "2022.02.08"]
[WhiteClock "0:00:06"]
[BlackClock "0:00:25"]

1. Nf3 {[%clk 0:03:00]}  d5 {[%clk 0:02:59]} 2. g3 {[%clk 0:03:01]}  Nc6 {[%clk 0:02:59]} 3. d4 {[%clk 0:03:00]}  Bf5 {[%clk 0:02:59]} 4. Bg2 {[%clk 0:03:00]}  e6 {[%clk 0:02:59]} 5. O-O {[%clk 0:03:00]}  Nf6 {[%clk 0:02:59]} 6. c4 {[%clk 0:02:54]}  Nb4 {[%clk 0:02:59]} 7. Nc3 {[%clk 0:02:48]}  dxc4 {[%clk 0:02:55]} 8. Ne5 {[%clk 0:02:38]}  c6 {[%clk 0:02:55]} 9. e4 {[%clk 0:02:28]}  Bg6 {[%clk 0:02:55]} 10. Nxc4 {[%clk 0:02:28]}  Be7 {[%clk 0:02:55]} 11. Ne5 {[%clk 0:02:25]}  O-O {[%clk 0:02:54]} 12. Be3 {[%clk 0:02:24]}  Rc8 {[%clk 0:02:53]} 13. a3 {[%clk 0:02:22]}  Na6 {[%clk 0:02:53]} 14. b4 {[%clk 0:02:21]}  Nc7 {[%clk 0:02:49]} 15. h3 {[%clk 0:02:18]}  Ra8 {[%clk 0:02:48]} 16. Qb3 {[%clk 0:02:12]}  Nd7 {[%clk 0:02:43]} 17. Nxg6 {[%clk 0:02:08]}  hxg6 {[%clk 0:02:44]} 18. Rfd1 {[%clk 0:02:03]}  Nb6 {[%clk 0:02:29]} 19. a4 {[%clk 0:01:57]}  Na6 {[%clk 0:02:17]} 20. a5 {[%clk 0:01:47]}  Nd7 {[%clk 0:02:16]} 21. b5 {[%clk 0:01:43]}  Nb4 {[%clk 0:02:15]} 22. d5 {[%clk 0:01:37]}  exd5 {[%clk 0:02:09]} 23. exd5 {[%clk 0:01:36]}  c5 {[%clk 0:02:05]} 24. d6 {[%clk 0:01:35]}  Bf6 {[%clk 0:02:05]} 25. Bxb7 {[%clk 0:01:30]}  Rb8 {[%clk 0:02:05]} 26. a6 {[%clk 0:01:24]}  Qb6 {[%clk 0:02:02]} 27. Rac1 {[%clk 0:01:19]}  Bxc3 {[%clk 0:01:54]} 28. Rxc3 {[%clk 0:00:59]}  Qxb5 {[%clk 0:01:52]} 29. Rb1 {[%clk 0:00:48]}  Qb6 {[%clk 0:01:52]} 30. Bxc5 {[%clk 0:00:44]}  Nxc5 {[%clk 0:01:49]} 31. Qxb4 {[%clk 0:00:44]}  Nxb7 {[%clk 0:01:41]} 32. Qxb6 {[%clk 0:00:39]}  axb6 {[%clk 0:01:42]} 33. Rxb6 {[%clk 0:00:27]}  Nxd6 {[%clk 0:01:33]} 34. Rxd6 {[%clk 0:00:27]}  Rb1+ {[%clk 0:01:33]} 35. Kg2 {[%clk 0:00:27]}  Ra1 {[%clk 0:01:33]} 36. Rc7 {[%clk 0:00:24]}  Ra2 {[%clk 0:00:44]} 37. a7 {[%clk 0:00:22]}  g5 {[%clk 0:00:44]} 38. Rdd7 {[%clk 0:00:11]}  g6 {[%clk 0:00:44]} 39. Rb7 {[%clk 0:00:07]}  Kg7 {[%clk 0:00:44]} 40. Kf3 {[%clk 0:00:07]}  Kf6 {[%clk 0:00:41]} 41. Rd6+ {[%clk 0:00:04]}  Ke5 {[%clk 0:00:40]} 42. Rdd7 {[%clk 0:00:04]}  Ke6 {[%clk 0:00:40]} 43. Rdc7 {[%clk 0:00:04]}  f5 {[%clk 0:00:37]} 44. Rc6+ {[%clk 0:00:04]}  Ke5 {[%clk 0:00:32]} 45. Rxg6 {[%clk 0:00:05]}  g4+ {[%clk 0:00:32]} 46. hxg4 {[%clk 0:00:02]}  fxg4+ {[%clk 0:00:33]} 47. Kxg4 {[%clk 0:00:03]}  Rfxf2 {[%clk 0:00:32]} 48. Rg8 {[%clk 0:00:02]}  Ra4+ {[%clk 0:00:30]} 49. Kg5 {[%clk 0:00:03]}  Rfa2 {[%clk 0:00:30]} 50. Rgg7 {[%clk 0:00:02]}  Ra5 {[%clk 0:00:28]} 51. g4 {[%clk 0:00:02]}  Ke4+ {[%clk 0:00:28]} 52. Kg6 {[%clk 0:00:02]}  Kf4 {[%clk 0:00:29]} 53. g5 {[%clk 0:00:02]}  Rxg5+ {[%clk 0:00:28]} 54. Kh7 {[%clk 0:00:03]}  Rga5 {[%clk 0:00:28]} 55. Kg8 {[%clk 0:00:03]}  Kf5 {[%clk 0:00:27]} 56. Rge7 {[%clk 0:00:03]}  Kf6 {[%clk 0:00:27]} 57. Kf8 {[%clk 0:00:04]}  Rh2 {[%clk 0:00:26]} 58. Rf7+ {[%clk 0:00:04]}  Ke6 {[%clk 0:00:26]} 59. Rbe7+ {[%clk 0:00:05]}  Kd6 {[%clk 0:00:27]} 60. Rf6+ {[%clk 0:00:05]}  Kc5 {[%clk 0:00:26]} 61. Re5+ {[%clk 0:00:05]}  Kb4 {[%clk 0:00:26]} 62. Rf4+ {[%clk 0:00:05]}  Kc3 {[%clk 0:00:25]} 63. Rxa5 {[%clk 0:00:06]} 1-0


[Site "https://www.chess.com"]

[Event "Early Titled Tuesday Blitz | February 8 2022"]
[White "Kamsky, Gata"]
[Black "Lopez Mulet, Inigo"]
[WhiteFideId "2000024"]
[BlackFideId "22235620"]
[WhiteElo "2645"]
[BlackElo "2315"]
[Result "1-0"]
[Round "04"]
[TimeControl "180+1"]
[Date "2022.02.08"]
[WhiteClock "0:00:25"]
[BlackClock "0:00:21"]

1. e4 {[%clk 0:03:00]}  g6 {[%clk 0:02:55]} 2. d4 {[%clk 0:03:00]}  Bg7 {[%clk 0:02:56]} 3. c3 {[%clk 0:03:00]}  c5 {[%clk 0:02:54]} 4. d5 {[%clk 0:02:58]}  e5 {[%clk 0:02:53]} 5. Nf3 {[%clk 0:02:53]}  d6 {[%clk 0:02:53]} 6. a4 {[%clk 0:02:52]}  Ne7 {[%clk 0:02:48]} 7. h4 {[%clk 0:02:47]}  h6 {[%clk 0:02:40]} 8. h5 {[%clk 0:02:46]}  g5 {[%clk 0:02:40]} 9. Bd3 {[%clk 0:02:36]}  Nd7 {[%clk 0:02:33]} 10. Nh2 {[%clk 0:02:32]}  Nf6 {[%clk 0:02:33]} 11. g4 {[%clk 0:02:32]}  O-O {[%clk 0:02:31]} 12. Na3 {[%clk 0:02:30]}  a6 {[%clk 0:02:29]} 13. f3 {[%clk 0:02:27]}  Ne8 {[%clk 0:02:27]} 14. Nf1 {[%clk 0:02:26]}  Nc7 {[%clk 0:02:27]} 15. a5 {[%clk 0:02:25]}  Ne8 {[%clk 0:02:24]} 16. Nc4 {[%clk 0:02:23]}  Rb8 {[%clk 0:02:19]} 17. Nb6 {[%clk 0:02:23]}  Nf6 {[%clk 0:02:18]} 18. Ne3 {[%clk 0:02:22]}  Nd7 {[%clk 0:02:16]} 19. Nxc8 {[%clk 0:02:21]}  Qxc8 {[%clk 0:02:14]} 20. Nc4 {[%clk 0:02:17]}  Qc7 {[%clk 0:02:14]} 21. O-O {[%clk 0:02:03]}  Rfc8 {[%clk 0:01:59]} 22. Kg2 {[%clk 0:02:03]}  Bf6 {[%clk 0:01:58]} 23. Be3 {[%clk 0:01:54]}  Kf8 {[%clk 0:01:53]} 24. Qe2 {[%clk 0:01:53]}  Ng8 {[%clk 0:01:51]} 25. Rfb1 {[%clk 0:01:49]}  Be7 {[%clk 0:01:50]} 26. b4 {[%clk 0:01:48]}  cxb4 {[%clk 0:01:42]} 27. cxb4 {[%clk 0:01:46]}  Ngf6 {[%clk 0:01:41]} 28. Rc1 {[%clk 0:01:45]}  Qd8 {[%clk 0:01:38]} 29. Rc2 {[%clk 0:01:44]}  Rc7 {[%clk 0:01:26]} 30. Rac1 {[%clk 0:01:35]}  Rbc8 {[%clk 0:01:26]} 31. Bf2 {[%clk 0:01:33]}  Ne8 {[%clk 0:01:21]} 32. Ne3 {[%clk 0:01:25]}  Rxc2 {[%clk 0:01:21]} 33. Rxc2 {[%clk 0:01:24]}  Ng7 {[%clk 0:01:18]} 34. Rxc8 {[%clk 0:01:10]}  Qxc8 {[%clk 0:01:18]} 35. Qc2 {[%clk 0:01:05]}  Qxc2 {[%clk 0:01:18]} 36. Bxc2 {[%clk 0:01:04]}  Bd8 {[%clk 0:01:11]} 37. Nc4 {[%clk 0:01:00]}  Bc7 {[%clk 0:01:12]} 38. Ba4 {[%clk 0:00:59]}  Ke7 {[%clk 0:01:08]} 39. Kf1 {[%clk 0:00:59]}  Ne8 {[%clk 0:01:06]} 40. Ke2 {[%clk 0:00:58]}  Nef6 {[%clk 0:00:58]} 41. Ne3 {[%clk 0:00:57]}  Ng8 {[%clk 0:00:53]} 42. Nf5+ {[%clk 0:00:57]}  Kd8 {[%clk 0:00:53]} 43. Kd3 {[%clk 0:00:56]}  b5 {[%clk 0:00:38]} 44. axb6 {[%clk 0:00:54]}  Bxb6 {[%clk 0:00:38]} 45. Be1 {[%clk 0:00:48]}  Kc7 {[%clk 0:00:36]} 46. Bb3 {[%clk 0:00:42]}  Ba7 {[%clk 0:00:31]} 47. Bc4 {[%clk 0:00:42]}  Nb8 {[%clk 0:00:30]} 48. Kc2 {[%clk 0:00:41]}  Bb6 {[%clk 0:00:27]} 49. Kb3 {[%clk 0:00:42]}  Ba7 {[%clk 0:00:27]} 50. Ka4 {[%clk 0:00:42]}  Bb6 {[%clk 0:00:28]} 51. Bd2 {[%clk 0:00:38]}  Ba7 {[%clk 0:00:28]} 52. Nxh6 {[%clk 0:00:33]}  Nxh6 {[%clk 0:00:27]} 53. Bxg5 {[%clk 0:00:34]}  Ng8 {[%clk 0:00:27]} 54. h6 {[%clk 0:00:34]}  Nxh6 {[%clk 0:00:27]} 55. Bxh6 {[%clk 0:00:34]}  Bf2 {[%clk 0:00:24]} 56. Bg5 {[%clk 0:00:34]}  Bg3 {[%clk 0:00:17]} 57. Be3 {[%clk 0:00:30]}  Be1 {[%clk 0:00:16]} 58. g5 {[%clk 0:00:23]}  Kb7 {[%clk 0:00:17]} 59. b5 {[%clk 0:00:22]}  axb5+ {[%clk 0:00:16]} 60. Bxb5 {[%clk 0:00:22]}  Kc7 {[%clk 0:00:17]} 61. f4 {[%clk 0:00:21]}  Nd7 {[%clk 0:00:17]} 62. Bxd7 {[%clk 0:00:20]}  Kxd7 {[%clk 0:00:18]} 63. f5 {[%clk 0:00:20]}  Bh4 {[%clk 0:00:18]} 64. Kb5 {[%clk 0:00:20]}  Bg3 {[%clk 0:00:18]} 65. Kc4 {[%clk 0:00:20]}  Bh4 {[%clk 0:00:19]} 66. Kd3 {[%clk 0:00:20]}  Ke7 {[%clk 0:00:19]} 67. Ke2 {[%clk 0:00:21]}  f6 {[%clk 0:00:19]} 68. g6 {[%clk 0:00:20]}  Kf8 {[%clk 0:00:20]} 69. Kd3 {[%clk 0:00:20]}  Be1 {[%clk 0:00:19]} 70. Kc4 {[%clk 0:00:20]}  Ba5 {[%clk 0:00:19]} 71. Kb5 {[%clk 0:00:21]}  Bd8 {[%clk 0:00:19]} 72. Kc6 {[%clk 0:00:21]}  Be7 {[%clk 0:00:20]} 73. Kd7 {[%clk 0:00:21]}  Kg7 {[%clk 0:00:18]} 74. Kxe7 {[%clk 0:00:22]}  Kh8 {[%clk 0:00:18]} 75. Kxd6 {[%clk 0:00:23]}  Kg7 {[%clk 0:00:19]} 76. Ke6 {[%clk 0:00:23]}  Kh8 {[%clk 0:00:20]} 77. d6 {[%clk 0:00:24]}  Kg7 {[%clk 0:00:21]} 78. d7 {[%clk 0:00:25]}  Kh8 {[%clk 0:00:21]} 79. d8=Q+ {[%clk 0:00:25]}  Kg7 {[%clk 0:00:22]} 80. Qxf6+ {[%clk 0:00:25]}  Kg8 {[%clk 0:00:22]} 81. Qf7+ {[%clk 0:00:26]}  Kh8 {[%clk 0:00:21]} 82. g7+ {[%clk 0:00:26]}  Kh7 {[%clk 0:00:21]} 83. g8=B+ {[%clk 0:00:25]}  Kh8 {[%clk 0:00:21]} 84. Qh7# {[%clk 0:00:25]} 1-0


[Site "https://www.chess.com"]

[Event "Early Titled Tuesday Blitz | February 8 2022"]
[White "Kanyamarala, Trisha"]
[Black "Aloma Vidal, Robert"]
[WhiteFideId "45004722"]
[BlackFideId "2260409"]
[WhiteElo "2002"]
[BlackElo "2435"]
[Result "1-0"]
[Round "04"]
[TimeControl "180+1"]
[Date "2022.02.08"]
[WhiteClock "0:00:42"]
[BlackClock "0:00:12"]

1. d4 {[%clk 0:02:59]}  d5 {[%clk 0:03:00]} 2. c4 {[%clk 0:02:59]}  c6 {[%clk 0:03:00]} 3. cxd5 {[%clk 0:02:59]}  cxd5 {[%clk 0:03:00]} 4. Bf4 {[%clk 0:02:57]}  Nc6 {[%clk 0:02:59]} 5. e3 {[%clk 0:02:54]}  e6 {[%clk 0:02:59]} 6. Nc3 {[%clk 0:02:53]}  Bd6 {[%clk 0:02:59]} 7. Bxd6 {[%clk 0:02:49]}  Qxd6 {[%clk 0:03:00]} 8. Nf3 {[%clk 0:02:48]}  Nge7 {[%clk 0:02:59]} 9. Bd3 {[%clk 0:02:47]}  f6 {[%clk 0:02:59]} 10. O-O {[%clk 0:02:47]}  O-O {[%clk 0:02:58]} 11. e4 {[%clk 0:02:46]}  dxe4 {[%clk 0:02:49]} 12. Nxe4 {[%clk 0:02:47]}  Qd8 {[%clk 0:02:49]} 13. Re1 {[%clk 0:02:41]}  b6 {[%clk 0:02:40]} 14. Bc4 {[%clk 0:02:34]}  Nd5 {[%clk 0:02:39]} 15. Nc3 {[%clk 0:02:34]}  Nce7 {[%clk 0:02:35]} 16. Qb3 {[%clk 0:02:18]}  a6 {[%clk 0:02:31]} 17. Nxd5 {[%clk 0:02:17]}  Nxd5 {[%clk 0:02:27]} 18. Bxd5 {[%clk 0:02:17]}  exd5 {[%clk 0:02:27]} 19. Rac1 {[%clk 0:02:12]}  Kh8 {[%clk 0:02:21]} 20. Rc6 {[%clk 0:02:07]}  Rb8 {[%clk 0:02:21]} 21. h3 {[%clk 0:02:03]}  Bf5 {[%clk 0:02:18]} 22. Qb4 {[%clk 0:01:57]}  Be4 {[%clk 0:02:12]} 23. Nd2 {[%clk 0:01:53]}  Re8 {[%clk 0:02:08]} 24. Nxe4 {[%clk 0:01:48]}  dxe4 {[%clk 0:02:08]} 25. Qc3 {[%clk 0:01:35]}  b5 {[%clk 0:02:06]} 26. Rd1 {[%clk 0:01:31]}  Qd5 {[%clk 0:02:02]} 27. Rc5 {[%clk 0:01:30]}  Qxa2 {[%clk 0:02:02]} 28. d5 {[%clk 0:01:30]}  b4 {[%clk 0:01:56]} 29. Qd4 {[%clk 0:01:25]}  Qa4 {[%clk 0:01:39]} 30. d6 {[%clk 0:01:20]}  Rbd8 {[%clk 0:01:39]} 31. d7 {[%clk 0:01:16]}  Rf8 {[%clk 0:01:39]} 32. Rd5 {[%clk 0:01:06]}  f5 {[%clk 0:01:37]} 33. Re5 {[%clk 0:01:03]}  a5 {[%clk 0:01:23]} 34. Re7 {[%clk 0:01:01]}  Rg8 {[%clk 0:01:23]} 35. Rc1 {[%clk 0:00:55]}  e3 {[%clk 0:01:00]} 36. fxe3 {[%clk 0:00:50]}  Qb5 {[%clk 0:00:32]} 37. Rc8 {[%clk 0:00:44]}  Rxd7 {[%clk 0:00:12]} 38. Qxg7# {[%clk 0:00:42]} 1-0


[Site "https://www.chess.com"]

[Event "Early Titled Tuesday Blitz | February 8 2022"]
[White "Kepeshchuk, Mykhaylo"]
[Black "Terletsky, Oleg"]
[WhiteFideId "14113139"]
[BlackFideId "14116774"]
[WhiteElo "2279"]
[BlackElo "2050"]
[Result "1-0"]
[Round "04"]
[TimeControl "180+1"]
[Date "2022.02.08"]
[WhiteClock "0:00:16"]
[BlackClock "0:00:05"]

1. d4 {[%clk 0:03:00]}  Nf6 {[%clk 0:02:59]} 2. c4 {[%clk 0:03:01]}  g6 {[%clk 0:03:00]} 3. Nc3 {[%clk 0:03:00]}  Bg7 {[%clk 0:03:00]} 4. e4 {[%clk 0:03:01]}  d6 {[%clk 0:03:01]} 5. Nf3 {[%clk 0:03:01]}  O-O {[%clk 0:03:01]} 6. Be2 {[%clk 0:03:01]}  e5 {[%clk 0:03:01]} 7. d5 {[%clk 0:03:01]}  a5 {[%clk 0:03:01]} 8. Be3 {[%clk 0:03:02]}  Ng4 {[%clk 0:02:59]} 9. Bg5 {[%clk 0:03:02]}  f6 {[%clk 0:02:56]} 10. Bh4 {[%clk 0:03:01]}  g5 {[%clk 0:02:55]} 11. Bg3 {[%clk 0:03:01]}  Nh6 {[%clk 0:02:52]} 12. Nd2 {[%clk 0:03:02]}  f5 {[%clk 0:02:46]} 13. f3 {[%clk 0:03:02]}  Na6 {[%clk 0:02:32]} 14. a3 {[%clk 0:03:00]}  Bd7 {[%clk 0:02:26]} 15. h3 {[%clk 0:02:53]}  fxe4 {[%clk 0:02:06]} 16. fxe4 {[%clk 0:02:45]}  Qe8 {[%clk 0:01:57]} 17. Bf2 {[%clk 0:02:34]}  a4 {[%clk 0:01:48]} 18. O-O {[%clk 0:02:33]}  Nc5 {[%clk 0:01:47]} 19. Rb1 {[%clk 0:02:31]}  b6 {[%clk 0:01:46]} 20. Nb5 {[%clk 0:02:11]}  Bxb5 {[%clk 0:01:27]} 21. cxb5 {[%clk 0:02:12]}  Rf4 {[%clk 0:01:17]} 22. Be3 {[%clk 0:02:07]}  Nf7 {[%clk 0:01:15]} 23. g3 {[%clk 0:01:46]}  Rxf1+ {[%clk 0:01:09]} 24. Qxf1 {[%clk 0:01:41]}  Qe7 {[%clk 0:01:10]} 25. Bg4 {[%clk 0:01:32]}  Rf8 {[%clk 0:01:05]} 26. Bxc5 {[%clk 0:01:30]}  dxc5 {[%clk 0:01:01]} 27. Be6 {[%clk 0:01:29]}  Kh8 {[%clk 0:01:01]} 28. Bxf7 {[%clk 0:01:29]}  Rxf7 {[%clk 0:01:01]} 29. Qe2 {[%clk 0:01:29]}  Qd7 {[%clk 0:00:48]} 30. Kg2 {[%clk 0:01:25]}  Bf8 {[%clk 0:00:42]} 31. Nc4 {[%clk 0:01:18]}  Bd6 {[%clk 0:00:41]} 32. Rf1 {[%clk 0:01:18]}  Kg7 {[%clk 0:00:40]} 33. Rxf7+ {[%clk 0:01:17]}  Qxf7 {[%clk 0:00:40]} 34. Qf3 {[%clk 0:01:18]}  Qxf3+ {[%clk 0:00:30]} 35. Kxf3 {[%clk 0:01:17]}  h5 {[%clk 0:00:31]} 36. g4 {[%clk 0:01:10]}  h4 {[%clk 0:00:28]} 37. Nd2 {[%clk 0:01:07]}  Kf6 {[%clk 0:00:26]} 38. Nb1 {[%clk 0:01:06]}  Ke7 {[%clk 0:00:19]} 39. Nc3 {[%clk 0:01:05]}  Kf6 {[%clk 0:00:19]} 40. Nxa4 {[%clk 0:01:05]}  Ke7 {[%clk 0:00:19]} 41. Ke2 {[%clk 0:01:04]}  Kd7 {[%clk 0:00:17]} 42. Kd3 {[%clk 0:01:04]}  Be7 {[%clk 0:00:16]} 43. Kc4 {[%clk 0:01:04]}  Bf6 {[%clk 0:00:15]} 44. Nc3 {[%clk 0:01:04]}  Kd6 {[%clk 0:00:15]} 45. Nd1 {[%clk 0:01:03]}  Kd7 {[%clk 0:00:14]} 46. Ne3 {[%clk 0:01:01]}  Be7 {[%clk 0:00:13]} 47. Nf5 {[%clk 0:01:01]}  Bd6 {[%clk 0:00:13]} 48. b3 {[%clk 0:00:58]}  Kc8 {[%clk 0:00:13]} 49. Ne3 {[%clk 0:00:55]}  Kd7 {[%clk 0:00:13]} 50. Nc2 {[%clk 0:00:48]}  Kc8 {[%clk 0:00:12]} 51. Ne3 {[%clk 0:00:28]}  Kd7 {[%clk 0:00:11]} 52. Kc3 {[%clk 0:00:28]}  Kc8 {[%clk 0:00:11]} 53. Nc4 {[%clk 0:00:29]}  Kb7 {[%clk 0:00:11]} 54. a4 {[%clk 0:00:28]}  Kc8 {[%clk 0:00:10]} 55. a5 {[%clk 0:00:28]}  bxa5 {[%clk 0:00:10]} 56. Nxa5 {[%clk 0:00:29]}  Kb8 {[%clk 0:00:10]} 57. Kc4 {[%clk 0:00:28]}  Ka7 {[%clk 0:00:10]} 58. Nc6+ {[%clk 0:00:29]}  Kb6 {[%clk 0:00:10]} 59. Nd8 {[%clk 0:00:28]}  Ka5 {[%clk 0:00:09]} 60. Ne6 {[%clk 0:00:27]}  Kb6 {[%clk 0:00:07]} 61. Ng7 {[%clk 0:00:24]}  Be7 {[%clk 0:00:06]} 62. Nf5 {[%clk 0:00:24]}  Bf6 {[%clk 0:00:06]} 63. Nh6 {[%clk 0:00:22]}  Be7 {[%clk 0:00:06]} 64. Nf5 {[%clk 0:00:20]}  Bf6 {[%clk 0:00:05]} 65. Ne3 {[%clk 0:00:21]}  Be7 {[%clk 0:00:05]} 66. Nc2 {[%clk 0:00:21]}  Bf6 {[%clk 0:00:05]} 67. Na3 {[%clk 0:00:21]}  Be7 {[%clk 0:00:05]} 68. Nb1 {[%clk 0:00:22]}  Bd6 {[%clk 0:00:05]} 69. Nc3 {[%clk 0:00:22]}  Ka5 {[%clk 0:00:05]} 70. Na4 {[%clk 0:00:22]}  Be7 {[%clk 0:00:05]} 71. Nxc5 {[%clk 0:00:22]}  Bd6 {[%clk 0:00:04]} 72. Ne6 {[%clk 0:00:20]}  Kb6 {[%clk 0:00:04]} 73. Ng7 {[%clk 0:00:20]}  Be7 {[%clk 0:00:05]} 74. Nf5 {[%clk 0:00:20]}  Bf6 {[%clk 0:00:05]} 75. d6 {[%clk 0:00:19]}  cxd6 {[%clk 0:00:05]} 76. Nxd6 {[%clk 0:00:20]}  Be7 {[%clk 0:00:05]} 77. Nf5 {[%clk 0:00:20]}  Bf6 {[%clk 0:00:05]} 78. Ne3 {[%clk 0:00:19]}  Bd8 {[%clk 0:00:03]} 79. Nd5+ {[%clk 0:00:19]}  Kb7 {[%clk 0:00:04]} 80. Kc5 {[%clk 0:00:18]}  Ba5 {[%clk 0:00:04]} 81. b4 {[%clk 0:00:18]}  Bd8 {[%clk 0:00:04]} 82. b6 {[%clk 0:00:18]}  Kc8 {[%clk 0:00:02]} 83. Kc6 {[%clk 0:00:19]}  Kb8 {[%clk 0:00:03]} 84. b7 {[%clk 0:00:17]}  Bb6 {[%clk 0:00:01]} 85. Nxb6 {[%clk 0:00:16]}  Ka7 {[%clk 0:00:01]} 86. Nd7 {[%clk 0:00:16]}  Ka6 {[%clk 0:00:01]} 87. Nxe5 {[%clk 0:00:13]}  Ka7 {[%clk 0:00:01]} 88. Nf7 {[%clk 0:00:11]}  Ka6 {[%clk 0:00:02]} 89. Nxg5 {[%clk 0:00:11]}  Ka7 {[%clk 0:00:02]} 90. Nf3 {[%clk 0:00:12]}  Ka6 {[%clk 0:00:03]} 91. Nxh4 {[%clk 0:00:13]}  Ka7 {[%clk 0:00:03]} 92. e5 {[%clk 0:00:14]}  Ka6 {[%clk 0:00:03]} 93. e6 {[%clk 0:00:15]}  Ka7 {[%clk 0:00:04]} 94. e7 {[%clk 0:00:15]}  Ka6 {[%clk 0:00:05]} 95. e8=Q {[%clk 0:00:15]}  Ka7 {[%clk 0:00:05]} 96. Qa8# {[%clk 0:00:16]} 1-0


[Site "https://www.chess.com"]

[Event "Early Titled Tuesday Blitz | February 8 2022"]
[White "Kett, Tim"]
[Black "Mayaud, Raphael"]
[WhiteFideId "1801210"]
[BlackFideId "627151"]
[WhiteElo "2098"]
[BlackElo "2191"]
[Result "1/2-1/2"]
[Round "04"]
[TimeControl "180+1"]
[Date "2022.02.08"]
[WhiteClock "0:00:07"]
[BlackClock "0:00:07"]

1. e4 {[%clk 0:03:00]}  d5 {[%clk 0:02:56]} 2. exd5 {[%clk 0:03:00]}  Qxd5 {[%clk 0:02:57]} 3. Nf3 {[%clk 0:03:00]}  Bg4 {[%clk 0:02:56]} 4. Be2 {[%clk 0:02:59]}  Nc6 {[%clk 0:02:56]} 5. h3 {[%clk 0:02:59]}  Bxf3 {[%clk 0:02:55]} 6. Bxf3 {[%clk 0:02:59]}  Qe5+ {[%clk 0:02:52]} 7. Qe2 {[%clk 0:02:57]}  Qxe2+ {[%clk 0:02:47]} 8. Bxe2 {[%clk 0:02:56]}  e5 {[%clk 0:02:40]} 9. c3 {[%clk 0:02:54]}  O-O-O {[%clk 0:02:40]} 10. d3 {[%clk 0:02:53]}  f5 {[%clk 0:02:38]} 11. f4 {[%clk 0:02:36]}  g6 {[%clk 0:02:27]} 12. O-O {[%clk 0:02:27]}  Bd6 {[%clk 0:02:17]} 13. fxe5 {[%clk 0:02:24]}  Bxe5 {[%clk 0:02:10]} 14. d4 {[%clk 0:02:24]}  Bd6 {[%clk 0:02:09]} 15. Nd2 {[%clk 0:02:15]}  Nf6 {[%clk 0:01:55]} 16. Nc4 {[%clk 0:02:14]}  Ne4 {[%clk 0:01:44]} 17. Nxd6+ {[%clk 0:02:12]}  Nxd6 {[%clk 0:01:43]} 18. Bf4 {[%clk 0:02:04]}  Rde8 {[%clk 0:01:42]} 19. Bf3 {[%clk 0:02:01]}  Kd7 {[%clk 0:01:35]} 20. Rae1 {[%clk 0:02:00]}  Rxe1 {[%clk 0:01:32]} 21. Rxe1 {[%clk 0:01:59]}  Re8 {[%clk 0:01:32]} 22. Rxe8 {[%clk 0:01:59]}  Nxe8 {[%clk 0:01:28]} 23. Kf2 {[%clk 0:01:58]}  Nd6 {[%clk 0:01:23]} 24. b3 {[%clk 0:01:54]}  b5 {[%clk 0:01:16]} 25. Ke3 {[%clk 0:01:52]}  Ne7 {[%clk 0:01:03]} 26. Kd3 {[%clk 0:01:44]}  Ng8 {[%clk 0:00:44]} 27. Be5 {[%clk 0:01:28]}  Nf7 {[%clk 0:00:23]} 28. Bh2 {[%clk 0:01:21]}  Ng5 {[%clk 0:00:20]} 29. Be2 {[%clk 0:01:09]}  Nf6 {[%clk 0:00:19]} 30. c4 {[%clk 0:01:08]}  bxc4+ {[%clk 0:00:19]} 31. bxc4 {[%clk 0:01:08]}  Nge4 {[%clk 0:00:19]} 32. d5 {[%clk 0:01:01]}  h5 {[%clk 0:00:18]} 33. Kd4 {[%clk 0:00:59]}  a5 {[%clk 0:00:12]} 34. c5 {[%clk 0:00:58]}  Nd2 {[%clk 0:00:11]} 35. Bb5+ {[%clk 0:00:50]}  Kd8 {[%clk 0:00:10]} 36. Ke5 {[%clk 0:00:45]}  Nfe4 {[%clk 0:00:07]} 37. c6 {[%clk 0:00:36]}  Nc3 {[%clk 0:00:07]} 38. Bd3 {[%clk 0:00:27]}  Nxa2 {[%clk 0:00:07]} 39. Ke6 {[%clk 0:00:21]}  Nb4 {[%clk 0:00:07]} 40. Bb5 {[%clk 0:00:15]}  Nb3 {[%clk 0:00:06]} 41. Kf6 {[%clk 0:00:12]}  Nd4 {[%clk 0:00:06]} 42. Ba4 {[%clk 0:00:08]}  Nxd5+ {[%clk 0:00:07]} 43. Kxg6 {[%clk 0:00:08]}  Nb6 {[%clk 0:00:07]} 44. Bd1 {[%clk 0:00:05]}  a4 {[%clk 0:00:07]} 45. Bxa4 {[%clk 0:00:05]}  Nxa4 {[%clk 0:00:06]} 46. Kxh5 {[%clk 0:00:05]}  Nxc6 {[%clk 0:00:05]} 47. Bxc7+ {[%clk 0:00:05]}  Kxc7 {[%clk 0:00:04]} 48. Kg5 {[%clk 0:00:05]}  Nd4 {[%clk 0:00:05]} 49. g4 {[%clk 0:00:05]}  fxg4 {[%clk 0:00:05]} 50. Kxg4 {[%clk 0:00:05]}  Kd6 {[%clk 0:00:06]} 51. h4 {[%clk 0:00:05]}  Ne6 {[%clk 0:00:06]} 52. h5 {[%clk 0:00:06]}  Ke7 {[%clk 0:00:06]} 53. h6 {[%clk 0:00:06]}  Kf8 {[%clk 0:00:07]} 54. h7 {[%clk 0:00:07]}  Kg7 {[%clk 0:00:07]} 55. h8=Q+ {[%clk 0:00:07]}  Kxh8 {[%clk 0:00:07]} 1/2-1/2


[Site "https://www.chess.com"]